bitfinex/quotes_ETHUSD_20220218
["timestamp","ask_amount","ask_price","bid_price","bid_amount"]
[1645184451951,3.7155,2883.6,2882.4,0.00339327]
[1645184452148,3.5,2883.8,2882.5,0.98504155]
[1645184452149,0.94248606,2883.4,2882.5,0.98504155]
[1645184452348,0.94248606,2883.4,2882.6,0.00339327]
[1645184452549,0.86752,2883.2,2882.4,0.00339327]
[1645184453148,0.94248606,2883.4,2882.4,0.00339327]
[1645184453350,4.67743275,2884.1,2882.5,0.8734657]
[1645184453351,0.00125715,2882.9,2882.5,0.8734657]
[1645184453551,0.00125715,2882.9,2882.3,20.89809577]
[1645184453552,0.00125715,2882.9,2882.6,0.00339327]
[1645184453755,0.00125715,2882.9,2882.7,0.86741]
[1645184453950,0.00125715,2882.9,2882.5,21.92474]
[1645184454151,1.7349,2883.7,2882.5,21.92474]
[1645184454351,1.7349,2883.7,2882.6,20.69039327]
[1645184454552,5.715e-05,2882.9,2882.8,20.19]
[1645184454995,5.715e-05,2882.9,2882.8,23.5622]
[1645184455400,0.02,2884.1,2882.8,23.5622]
[1645184455598,0.02,2884.1,2883.5,1.01707434]
[1645184455797,0.02,2884.1,2883.6,0.00339256]
[1645184455798,1.73447,2884.0,2883.6,0.00339256]
[1645184456201,0.88723,2884.1,2883.6,20.19339256]
[1645184456404,0.02,2884.1,2883.6,0.00339256]
[1645184456797,0.00125625,2884.0,2883.6,0.00339256]
[1645184457002,1.73579625,2884.0,2883.6,0.00339256]
[1645184457806,1.73579625,2884.0,2883.0,3.7291]
[1645184457807,1.73454,2884.0,2883.2,0.00339256]
[1645184458005,0.00125625,2883.9,2883.2,0.00339256]
[1645184458203,0.86728,2883.7,2882.9,0.00339256]
[1645184458605,0.86728,2883.7,2883.1,0.96270514]
[1645184458857,0.86728,2883.7,2883.2,0.00339256]
[1645184459355,0.00236792,2883.5,2883.2,0.87064256]
[1645184459552,0.00236792,2883.5,2883.2,0.86725]
[1645184459756,6.792e-05,2883.5,2883.2,21.05725]
[1645184459954,6.792e-05,2883.5,2883.4,21.82408]
[1645184460154,4.36707,2884.4,2883.4,1.63408]
[1645184460354,0.8672395,2884.2,2883.5,0.00339209]
[1645184460556,1.734479,2884.5,2883.5,0.86717]
[1645184460760,0.13819997,2884.7,2883.6,0.00339209]
[1645184460957,0.86715,2884.2,2883.6,0.00339209]
[1645184461157,0.86715,2884.2,2883.5,1.14483669]
[1645184461359,0.86715,2884.2,2883.6,0.00339209]
[1645184461859,0.00125535,2884.0,2883.6,0.00339209]
[1645184462596,0.86712,2884.0,2883.6,0.00339209]
[1645184462795,0.86712,2884.0,2883.6,0.17669209]
[1645184462996,2.6013754,2884.5,2883.7,0.86707]
[1645184462997,0.00125535,2883.9,2883.7,0.86707]
[1645184463202,0.00125535,2883.9,2883.8,20.687]
[1645184463403,3.5,2885.3,2883.9,0.0012]
[1645184463600,4.59726,2885.4,2884.0,5.6703]
[1645184463601,3.46866,2885.4,2884.0,5.6703]
[1645184463803,4.37585102,2885.9,2885.0,1.0211768]
[1645184464002,3.5,2886.2,2885.0,1.0211768]
[1645184464214,0.86667,2885.7,2885.0,1.0211768]
[1645184464402,1.73338,2886.3,2885.1,0.497]
[1645184464804,0.62602837,2887.3,2885.3,20.19]
[1645184465004,9.84191364,2887.9,2885.9,0.2436]
[1645184465005,6.996e-05,2886.3,2885.9,0.2436]
[1645184465210,7.3,2887.9,2886.0,17.6983308]
[1645184465211,0.07380708,2887.1,2886.0,17.6983308]
[1645184465402,0.86617,2887.7,2886.0,19.4306708]
[1645184465600,0.07379192,2887.6,2886.1,3.997]
[1645184465802,0.07379192,2887.6,2886.2,0.1731]
[1645184466002,1.12724158,2887.5,2886.7,1.03916197]
[1645184466245,1.12724158,2887.5,2886.6,0.86618]
[1645184466455,0.94005324,2887.4,2886.3,4.91215]
[1645184466641,0.86627,2887.4,2886.3,4.91215]
[1645184466847,0.86627,2887.4,2886.3,1.73235]
[1645184467245,0.92697071,2887.0,2886.3,1.73235]
[1645184467446,0.86657,2886.9,2886.1,0.99997814]
[1645184468048,0.3,2886.7,2885.6,2.7413]
[1645184468248,0.07379867,2886.6,2885.6,2.7413]
[1645184468445,0.24689867,2886.6,2885.6,2.7413]
[1645184468643,0.07379867,2886.5,2885.6,2.7413]
[1645184468847,0.00237427,2886.2,2885.2,1.1948]
[1645184469047,1.03556394,2886.2,2885.2,1.1948]
[1645184469248,1.33556394,2886.2,2885.1,5.9119]
[1645184469454,1.33556394,2886.2,2885.1,2.7584]
[1645184469652,1.90231194,2886.2,2885.1,2.7584]
[1645184469848,1.89993767,2886.2,2884.9,1.32509209]
[1645184470102,0.9201925,2885.7,2884.9,1.32509209]
[1645184470307,0.9201925,2885.7,2884.9,0.00339209]
[1645184470501,0.00237444,2885.8,2884.9,0.00339209]
[1645184470905,0.8168899,2885.7,2884.9,0.00339209]
[1645184471106,0.8168899,2885.7,2884.7,0.00259209]
[1645184471107,3.57382496,2885.6,2884.7,0.00259209]
[1645184471303,0.86703,2885.3,2884.4,0.00259209]
[1645184471503,3.5,2885.2,2884.4,0.00259209]
[1645184471713,1.6353,2885.3,2884.2,0.00259209]
[1645184471904,4.61416288,2885.2,2884.0,1.10673705]
[1645184472110,1.7344197,2884.9,2884.1,0.00259209]
[1645184472306,3.8,2884.8,2884.1,0.00259209]
[1645184472509,0.00125268,2884.7,2884.1,0.00259209]
[1645184472712,0.00125268,2884.7,2883.6,0.00259209]
[1645184472713,0.86848268,2884.7,2883.6,0.00259209]
[1645184472905,3.5,2884.6,2883.6,0.00259209]
[1645184473108,4.3672099,2884.6,2883.6,0.00259209]
[1645184473303,1.0,2884.5,2883.6,0.00259209]
[1645184473506,1.01733426,2884.2,2883.6,0.00259209]
[1645184473744,0.00125268,2884.2,2883.6,0.00259209]
[1645184474549,0.86729,2884.1,2883.6,0.00259209]
[1645184474759,0.86729,2884.1,2883.4,0.00259209]
[1645184474952,0.00125268,2884.0,2883.1,1.42964805]
[1645184475159,0.00125268,2884.0,2883.1,0.00259209]
[1645184475351,0.00125268,2884.0,2883.2,0.00259209]
[1645184475552,0.00125268,2884.0,2883.3,1.03511396]
[1645184475752,0.86729,2884.1,2883.4,0.00259209]
[1645184476150,0.00237231,2884.0,2883.4,0.00259209]
[1645184476553,0.00237231,2884.0,2883.4,21.6221901]
[1645184476751,0.00237231,2884.0,2883.4,0.00259209]
[1645184476955,0.86715,2884.4,2883.8,1.04410308]
[1645184477153,0.86715,2884.4,2883.9,0.00259209]
[1645184477356,0.00237235,2884.0,2883.8,0.03608167]
[1645184478206,0.13819997,2884.7,2883.8,0.03608167]
[1645184478601,0.00237244,2884.0,2883.8,0.03608167]
[1645184479002,0.00237244,2884.0,2883.9,1.17598504]
[1645184479404,3.65153447,2885.6,2883.9,1.17598504]
[1645184479405,0.1733,2885.6,2883.9,23.69]
[1645184479608,0.62602837,2885.8,2884.0,0.17589209]
[1645184479609,1.73394,2885.4,2884.0,0.17589209]
[1645184479810,0.00237242,2884.1,2884.0,0.1733]
[1645184480009,0.00237242,2884.1,2883.9,2.9188]
[1645184480607,0.86716,2884.2,2883.8,0.03945244]
[1645184480807,0.86716,2884.2,2883.8,0.03608167]
[1645184481005,0.86716,2884.2,2883.8,0.03945244]
[1645184481445,0.86716,2884.2,2883.8,0.03608167]
[1645184482244,0.86716,2884.2,2883.9,0.01631325]
[1645184482655,1.1733,2885.0,2883.9,0.01631325]
[1645184482850,0.86701,2884.8,2883.9,0.01968402]
[1645184483052,0.86701,2884.8,2883.9,0.01631325]
[1645184483247,0.00125096,2884.6,2883.9,0.01631325]
[1645184483453,0.00125096,2884.6,2883.9,20.20968402]
[1645184483649,0.00125096,2884.6,2884.3,2.03055703]
[1645184484055,0.00125096,2884.6,2884.4,3.5]
[1645184484056,5.096e-05,2884.6,2884.4,3.5]
[1645184484256,0.1733,2886.2,2884.5,37.8885308]
[1645184484454,1.7336,2885.7,2884.8,1.73342]
[1645184484852,0.86675,2885.7,2885.2,1.07494113]
[1645184485099,0.86675,2885.7,2884.7,0.1731]
[1645184485307,0.86675,2885.7,2884.6,20.19]
[1645184486097,0.86675,2885.7,2885.0,0.96119981]
[1645184486902,0.86687,2885.4,2884.5,3.5498]
[1645184487100,0.86687,2885.4,2884.5,0.1731]
[1645184487502,1.11898503,2886.1,2884.5,3.6731]
[1645184487804,0.07381814,2886.0,2884.5,0.1731]
[1645184487999,0.8669,2885.4,2884.7,2.01436427]
[1645184488199,0.8669,2885.4,2884.4,5.06442]
[1645184488200,0.86926921,2885.4,2884.4,5.06442]
[1645184488398,0.86926921,2885.4,2884.4,1.73372]
[1645184489051,0.8669,2885.4,2884.4,1.73372]
[1645184489250,0.00236936,2885.0,2884.4,1.73372]
[1645184489647,0.00236936,2885.0,2884.4,21.92372]
[1645184489849,0.00236936,2885.0,2884.4,1.73372]
[1645184490052,0.00236936,2885.0,2884.3,2.9383]
[1645184490252,1.11628904,2885.0,2884.2,1.06324908]
[1645184490455,0.86688,2885.2,2884.2,1.06324908]
[1645184490651,0.2837,2885.3,2884.2,1.06324908]
[1645184490652,0.00236944,2884.8,2884.2,1.06324908]
[1645184491253,0.00236944,2884.8,2884.0,1.90721]
[1645184491452,0.1063249,2884.1,2884.0,1.70614066]
[1645184491653,0.1063249,2884.1,2883.8,1.73409]
[1645184491854,0.9734949,2884.1,2883.8,1.73409]
[1645184492052,0.1063249,2884.1,2883.8,1.73409]
[1645184492252,0.1063249,2884.1,2883.9,0.9656218]
[1645184492492,0.1063249,2884.1,2884.0,0.86704]
[1645184495099,0.1063249,2884.1,2884.0,21.05704]
[1645184495501,0.1063249,2884.1,2884.0,0.86704]
[1645184495899,0.00236924,2884.7,2884.2,0.86696]
[1645184496101,0.00236924,2884.7,2884.2,24.55696]
[1645184496361,0.07382746,2885.2,2884.3,23.69]
[1645184496561,0.00236942,2884.7,2884.5,20.19]
[1645184496758,6.942e-05,2884.7,2884.6,20.19]
[1645184496957,6.942e-05,2884.7,2884.6,21.05667]
[1645184497156,6.942e-05,2884.7,2884.6,22.49089362]
[1645184497355,6.942e-05,2884.7,2884.6,21.62422362]
[1645184497560,2.68120186,2886.0,2884.5,1.03998]
[1645184497561,0.94780186,2886.0,2884.5,1.03998]
[1645184497757,0.073816,2885.9,2884.5,1.03998]
[1645184497956,0.246916,2885.9,2884.5,0.86668]
[1645184498156,0.073816,2885.8,2884.5,0.86668]
[1645184498762,0.86678,2885.5,2884.4,1.73335]
[1645184498971,0.92780719,2884.9,2884.0,4.07316482]
[1645184499160,0.92780719,2884.9,2884.0,1.01866482]
[1645184499161,0.073816,2884.8,2884.0,1.01866482]
[1645184499362,0.92780719,2884.9,2884.0,1.01866482]
[1645184499561,1.0,2885.3,2884.0,1.01866482]
[1645184499761,0.0738308,2885.2,2884.0,4.51866482]
[1645184499994,0.0738308,2885.2,2884.0,1.88571482]
[1645184499995,0.86717,2884.7,2884.0,1.88571482]
[1645184500398,0.86717,2884.7,2884.0,1.01866482]
[1645184500797,1.73646942,2884.8,2884.0,1.01866482]
[1645184500798,0.00236942,2884.8,2884.0,21.20866482]
[1645184501000,0.00236942,2884.8,2884.1,25.12640824]
[1645184501198,1.73364,2885.5,2884.5,1.73355]
[1645184501401,0.00236929,2884.8,2884.5,1.73355]
[1645184501997,0.00236929,2884.8,2884.5,2.73171039]
[1645184502197,0.00236929,2884.8,2884.7,0.02096242]
[1645184502399,0.07382408,2885.2,2884.7,0.02096242]
[1645184502596,1.73364,2885.5,2884.7,0.02096242]
[1645184502597,0.00236942,2884.8,2884.7,0.02096242]
[1645184503200,0.00236942,2884.8,2884.7,0.88773242]
[1645184503606,0.07382162,2885.3,2884.7,0.88773242]
[1645184503607,0.86682,2885.0,2884.7,0.88773242]
[1645184503860,0.00236942,2884.9,2884.7,0.88773242]
[1645184504658,0.07382151,2885.3,2884.7,0.88773242]
[1645184504859,0.94064151,2885.2,2884.7,0.88773242]
[1645184505059,0.0023694,2884.9,2884.7,0.02096242]
[1645184505858,0.07382288,2885.1,2884.7,0.02096242]
[1645184506057,0.92886401,2885.1,2884.7,0.02096242]
[1645184506265,0.0023694,2884.9,2884.7,0.02096242]
[1645184506459,0.8692294,2884.9,2884.7,0.02096242]
[1645184507059,0.86686,2884.9,2884.7,0.02096242]
[1645184507496,0.8692294,2884.9,2884.7,0.02096242]
[1645184508299,0.86686,2884.9,2884.7,0.02096242]
[1645184508499,0.8692294,2884.9,2884.7,0.02096242]
[1645184509302,0.76518299,2884.9,2884.7,0.02096242]
[1645184509501,0.76281359,2884.9,2884.7,0.02096242]
[1645184509704,0.76518299,2884.9,2884.7,0.02096242]
[1645184510103,1.73376,2885.2,2884.7,0.02096242]
[1645184510104,0.93724695,2885.2,2884.9,6.5023]
[1645184510311,0.5514844,2886.4,2885.1,6.51266065]
[1645184510507,0.07381234,2886.1,2885.2,25.13089848]
[1645184510709,0.07381234,2886.6,2885.5,20.19]
[1645184510904,0.94026661,2886.5,2885.6,21.63089848]
[1645184511107,0.07379661,2886.4,2885.7,2.69364994]
[1645184511350,0.07379661,2886.4,2885.7,1.63662501]
[1645184511556,0.94655786,2886.6,2885.7,1.63662501]
[1645184511752,0.94655786,2886.6,2885.2,0.1732]
[1645184511954,1.81303786,2886.6,2885.6,0.86661]
[1645184512353,0.0023823,2886.3,2885.6,0.86661]
[1645184513053,0.8666,2886.2,2885.4,1.73306]
[1645184513253,0.6,2886.1,2884.8,7.0995]
[1645184513550,0.3,2886.1,2884.9,1.47618887]
[1645184513755,0.91364309,2885.5,2885.2,0.00238312]
[1645184514165,2.35156309,2885.5,2885.2,0.00238312]
[1645184514353,2.65156309,2885.5,2885.2,0.00238312]
[1645184514554,2.65156309,2885.5,2884.7,0.02096242]
[1645184514754,2.65156309,2885.5,2885.2,0.00238287]
[1645184514755,2.65394567,2885.5,2885.2,0.00238287]
[1645184515199,3.52090947,2885.5,2885.2,0.00238287]
[1645184515602,3.52090947,2885.5,2884.7,0.02096242]
[1645184515603,3.51852689,2885.5,2884.7,0.02096242]
[1645184516001,2.65394567,2885.5,2885.2,0.00238287]
[1645184516203,2.38294567,2885.5,2885.2,0.00238287]
[1645184516809,2.38294567,2885.5,2884.7,1.75463242]
[1645184516810,2.38056309,2885.5,2884.7,1.75463242]
[1645184517002,2.38056309,2885.5,2885.2,0.00238287]
[1645184517204,2.38294567,2885.5,2885.2,0.00238287]
[1645184518003,1.51364309,2885.5,2885.0,0.86683]
[1645184518202,1.51364309,2885.5,2885.2,0.00238287]
[1645184518203,1.51602567,2885.5,2885.2,0.00238287]
[1645184519052,0.30238258,2885.5,2885.2,0.00238287]
[1645184519252,0.85719839,2885.7,2885.2,0.86677]
[1645184519459,0.00238258,2885.5,2885.2,0.86915287]
[1645184520454,0.18262793,2886.3,2885.0,1.73349]
[1645184520455,0.86679,2885.7,2885.0,1.73349]
[1645184520653,0.00238258,2885.5,2885.2,0.00238287]
[1645184521453,0.00238258,2885.5,2885.2,0.86915287]
[1645184521651,1.16679,2885.7,2885.0,1.73349]
[1645184521852,0.00238258,2885.5,2885.2,0.00238287]
[1645184522492,0.86925258,2885.5,2885.2,0.00238287]
[1645184522896,0.86687,2885.5,2885.1,1.47620148]
[1645184523093,0.3,2885.7,2885.1,1.47620148]
[1645184523294,1.56329902,2885.8,2885.2,0.86676]
[1645184524303,0.00238525,2885.6,2885.2,0.86914562]
[1645184525302,0.3,2885.7,2885.2,0.86676]
[1645184525502,0.00238529,2885.5,2885.2,0.86914558]
[1645184525804,0.00238529,2885.5,2885.4,1.73328]
[1645184526449,0.95708417,2885.8,2885.0,1.73349]
[1645184526649,0.86668,2886.2,2885.2,0.0023856]
[1645184526650,0.00238527,2885.6,2885.2,0.0023856]
[1645184527255,0.00238527,2885.6,2885.0,1.73349]
[1645184527652,0.99151481,2885.8,2885.0,1.73349]
[1645184527850,0.86668,2886.2,2885.0,1.73349]
[1645184528052,3.5,2886.3,2885.3,0.86675]
[1645184528254,0.86664,2886.3,2885.3,0.86675]
[1645184528455,3.5,2886.7,2885.3,21.05675]
[1645184528757,0.5514844,2887.0,2885.4,20.53532]
[1645184528960,0.92859848,2887.0,2886.0,0.86642]
[1645184529257,0.00238506,2886.1,2886.0,0.86642]
[1645184529459,0.00238506,2886.1,2885.9,1.73283]
[1645184530016,10.8,2886.9,2885.9,2.84604651]
[1645184530199,1.0,2886.8,2885.9,2.84604651]
[1645184530401,0.92859848,2887.0,2885.9,2.84604651]
[1645184530602,0.00218734,2886.1,2886.0,0.1731]
[1645184530798,0.00218734,2886.1,2885.9,23.03604651]
[1645184531000,0.00218734,2886.1,2886.0,0.1731]
[1645184531200,0.92859848,2887.0,2886.0,0.1731]
[1645184531402,0.86639,2887.2,2886.0,0.1731]
[1645184531600,0.00874805,2886.6,2886.3,0.8664]
[1645184532001,0.00874805,2886.6,2886.3,34.4248463]
[1645184532205,1.73259,2887.8,2886.6,20.19898207]
[1645184532508,0.1731,2888.2,2887.4,0.86219036]
[1645184532701,1.1714734,2888.3,2887.4,0.86219036]
[1645184532905,5.52189839,2888.6,2887.5,0.8661]
[1645184532906,0.85719839,2888.6,2887.5,0.8661]
[1645184533101,1.30141364,2888.9,2887.5,0.8661]
[1645184533102,0.85719839,2888.9,2887.5,0.8661]
[1645184533302,0.816,2888.6,2887.5,0.8661]
[1645184533863,0.1731,2889.0,2888.2,0.86586]
[1645184534057,0.13866,2889.2,2888.2,0.86586]
[1645184534657,1.03009839,2889.5,2888.2,0.86586]
[1645184534859,1.63176,2889.1,2888.2,0.86586]
[1645184535164,0.00124315,2888.8,2888.2,0.86586]
[1645184535358,0.00124315,2888.8,2887.7,0.1729]
[1645184535657,0.00124315,2888.8,2887.7,3.5]
[1645184535957,0.86714315,2888.8,2887.6,3.2]
[1645184536157,0.3,2888.7,2887.7,0.1731]
[1645184536357,0.00124316,2888.4,2887.7,0.1731]
[1645184536555,0.00124316,2888.4,2887.7,1.03912]
[1645184537155,0.8659,2888.8,2887.7,1.03912]
[1645184537357,1.17431649,2888.4,2887.7,1.03912]
[1645184537608,0.00124316,2888.2,2887.3,3.09224]
[1645184537812,0.00124316,2888.2,2887.3,1.73214]
[1645184538407,1.77431649,2888.4,2887.4,0.96762625]
[1645184538818,0.1731,2889.1,2887.7,20.19]
[1645184539018,0.00239704,2887.9,2887.7,0.1731]
[1645184539214,0.00239704,2887.9,2887.5,0.1731]
[1645184539815,0.00239704,2887.9,2887.3,1.2339]
[1645184540013,0.00239704,2887.9,2887.4,0.86613]
[1645184540214,0.00219407,2887.9,2887.4,0.86613]
[1645184540616,0.00219407,2887.9,2887.8,1.00419669]
[1645184540914,1.26443191,2888.7,2887.8,1.00419669]
[1645184540915,0.86598,2888.6,2887.8,1.00419669]
[1645184541114,0.00103008,2888.0,2887.8,1.00419669]
[1645184541567,0.00103008,2888.0,2887.8,1.87013669]
[1645184541771,0.00103008,2888.0,2887.8,22.06013669]
[1645184542166,2.77104,2889.4,2887.8,22.06013669]
[1645184542365,0.00219328,2888.0,2887.8,22.06013669]
[1645184542564,2.59794,2889.4,2887.9,4.0]
[1645184542764,2.59794,2889.4,2888.3,0.86579]
[1645184543264,0.3,2889.2,2888.3,0.86579]
[1645184543665,0.3,2889.2,2888.6,1.03676215]
[1645184543869,0.3,2889.2,2888.7,1.73124]
[1645184544069,0.3,2889.2,2888.1,4.80548]
[1645184544269,2.46296026,2889.4,2888.2,20.19]
[1645184544270,1.0,2889.3,2888.2,20.19]
[1645184544471,0.3,2889.4,2888.2,20.19]
[1645184544671,0.8656,2889.7,2888.4,20.19]
[1645184544869,0.00123304,2888.8,2888.4,20.19]
[1645184545600,0.00123304,2888.8,2888.7,0.8657]
[1645184545796,1.0657348,2889.4,2888.7,0.8657]
[1645184545996,0.00493109,2889.4,2888.7,0.8657]
[1645184546997,0.3,2889.5,2888.7,21.0557]
[1645184547196,0.00122665,2889.2,2888.7,0.8657]
[1645184548201,0.3,2889.6,2888.7,0.8657]
[1645184548398,0.00122665,2889.1,2888.7,0.8657]
[1645184548860,0.00122665,2889.1,2889.0,21.0555]
[1645184549063,0.00122665,2889.1,2889.0,0.8655]
[1645184549259,1.90408,2890.0,2889.0,0.8655]
[1645184549460,1.90408,2890.0,2888.9,2.86912167]
[1645184549461,1.73118,2890.0,2888.9,2.86912167]
[1645184549760,0.00122665,2889.2,2888.9,2.86912167]
[1645184550562,0.88707586,2889.8,2888.9,2.86912167]
[1645184550765,1.3,2889.9,2888.9,2.86912167]
[1645184550766,0.00240492,2889.2,2888.9,2.86912167]
[1645184551363,0.00240492,2889.2,2888.9,1.731]
[1645184551761,0.86562,2889.6,2888.9,1.731]
[1645184551962,0.00240492,2889.2,2888.8,1.73113]
[1645184552361,1.17049396,2889.7,2888.8,2.80777807]
[1645184552799,1.47049396,2889.7,2888.8,2.80777807]
[1645184553599,0.86564,2889.6,2888.8,2.80777807]
[1645184554806,1.47049396,2889.7,2888.8,2.80777807]
[1645184555406,0.3,2889.7,2888.8,2.80777807]
[1645184555606,0.3,2889.7,2889.1,0.00118916]
[1645184555805,0.86552,2890.1,2889.1,0.00118916]
[1645184556010,0.86552,2889.7,2889.1,0.00118916]
[1645184556262,0.86552,2890.1,2889.2,0.86552]
[1645184556263,0.04035806,2890.0,2889.2,0.86552]
[1645184557067,0.0024047,2889.7,2889.4,0.00240497]
[1645184557260,0.0024047,2889.7,2889.4,0.86787497]
[1645184557760,0.04035806,2890.0,2889.4,0.86547]
[1645184557964,0.90590806,2890.0,2889.1,1.73099]
[1645184558160,0.00240468,2889.7,2889.4,0.00240496]
[1645184558969,0.00240468,2889.7,2888.7,1.1831]
[1645184558970,0.86565,2889.7,2888.7,1.1831]
[1645184559364,0.3,2889.7,2888.7,1.1831]
[1645184559565,0.30240468,2889.7,2889.4,0.00240496]
[1645184559763,1.73381468,2889.7,2889.4,0.00240496]
[1645184560204,2.73141,2889.7,2888.7,1.1831]
[1645184560409,2.73141,2889.7,2888.2,2.7883]
[1645184560410,0.86587,2889.2,2888.2,3.5]
[1645184560610,0.86587,2889.2,2888.1,3.0739]
[1645184560611,2.5977,2889.2,2888.1,3.0739]
[1645184560806,0.3,2889.1,2888.1,3.0739]
[1645184561411,2.78111233,2888.9,2888.1,4.17106932]
[1645184561607,2.78111233,2888.9,2888.1,3.0739]
[1645184561608,1.91525233,2888.9,2888.1,3.0739]
[1645184561807,0.3,2888.8,2888.0,4.3829]
[1645184562006,0.3,2888.8,2888.0,3.1968]
[1645184562511,1.7319048,2888.7,2887.6,8.89922]
[1645184562711,1.099,2888.6,2887.5,0.01885379]
[1645184563108,0.6,2888.0,2887.5,0.01885379]
[1645184563306,0.499,2888.4,2887.5,0.01885379]
[1645184563754,0.799,2888.4,2887.5,0.01885379]
[1645184563954,2.59888,2888.2,2887.7,1.18340792]
[1645184564154,0.3,2888.1,2887.7,1.18340792]
[1645184564456,0.3,2888.4,2887.7,1.18340792]
[1645184564654,1.0,2888.4,2887.7,1.18340792]
[1645184564854,0.3,2888.4,2887.7,1.18340792]
[1645184565253,0.3,2888.6,2887.7,1.18340792]
[1645184565554,1.73207,2888.1,2887.7,1.18340792]
[1645184565753,0.3,2888.0,2887.7,1.18340792]
[1645184565953,0.3,2888.0,2887.5,0.01885379]
[1645184566656,2.03224,2888.0,2887.5,0.01885379]
[1645184566856,1.7323,2887.9,2887.5,0.01885379]
[1645184567057,2.0323,2887.9,2887.5,0.01885379]
[1645184567258,2.0323,2887.9,2887.2,3.5]
[1645184567259,0.3,2887.9,2887.2,3.5]
[1645184567498,0.3,2887.9,2887.1,21.3662614]
[1645184567698,0.86608,2888.0,2887.1,1.1762614]
[1645184568105,1.73211,2888.2,2887.5,0.86605]
[1645184568299,1.73211,2888.2,2887.6,0.00240304]
[1645184568500,0.3,2888.1,2887.6,0.00240304]
[1645184568902,0.3,2888.1,2887.6,0.83872187]
[1645184569303,0.83731169,2888.3,2887.7,0.868383]
[1645184569304,0.86597,2888.3,2887.7,0.868383]
[1645184570102,0.86597,2888.3,2887.7,0.86598]
[1645184570505,0.3,2888.2,2887.9,0.00240294]
[1645184570705,0.86587,2888.7,2888.0,0.86586]
[1645184571105,0.6,2888.6,2888.0,0.86586]
[1645184571552,0.6,2888.6,2888.2,0.00118955]
[1645184572350,1.46588,2888.6,2888.2,0.00118955]
[1645184572554,1.46588,2888.6,2888.2,0.86583]
[1645184572750,1.46588,2888.6,2888.3,0.00240545]
[1645184573752,1.46588,2888.6,2888.2,0.86583]
[1645184573957,1.46588,2888.6,2888.3,0.00240543]
[1645184574996,1.46588,2888.6,2887.8,1.73172]
[1645184575197,1.46588,2888.6,2888.3,0.00240525]
[1645184575198,1.7320984,2888.5,2888.3,0.00240525]
[1645184575997,0.86595,2888.5,2888.3,0.00240525]
[1645184576198,1.16595,2888.5,2887.8,1.47488941]
[1645184576397,2.01761327,2888.3,2887.8,1.47488941]
[1645184576597,0.86592,2888.3,2887.7,0.02017583]
[1645184577597,0.86592,2888.3,2887.9,0.00240544]
[1645184577797,1.78479823,2888.3,2887.9,0.00240544]
[1645184578598,0.3,2888.2,2887.8,1.47492228]
[1645184578856,0.3,2888.2,2888.0,0.0024081]
[1645184579858,0.3,2888.2,2887.7,0.02017583]
[1645184580057,1.73201,2888.1,2888.0,0.0024081]
[1645184580258,1.46597,2888.1,2888.0,0.0024081]
[1645184581056,0.3,2888.0,2887.7,0.02017583]
[1645184581260,2.33217,2888.0,2887.9,0.00240812]
[1645184581958,0.6,2888.0,2887.9,0.00240812]
[1645184582163,0.3,2888.0,2887.2,44.2434308]
[1645184582359,0.3,2888.0,2887.8,0.8659]
[1645184582601,1.48688485,2888.2,2887.8,0.86830816]
[1645184582803,0.3270166,2888.2,2887.8,0.86830816]
[1645184583000,0.0270166,2888.2,2887.8,0.00240816]
[1645184583300,0.0270166,2888.2,2887.6,1.47491079]
[1645184583702,0.0270166,2888.2,2887.9,0.00240814]
[1645184584305,0.8929366,2888.2,2887.9,0.00240814]
[1645184584509,0.8929366,2888.2,2887.7,1.47491079]
[1645184584712,0.8929366,2888.2,2887.9,20.19]
[1645184585008,0.0270166,2888.2,2887.9,20.19240812]
[1645184585506,0.0270166,2888.2,2888.1,20.19]
[1645184585715,1.18177892,2889.1,2888.3,1.07791252]
[1645184585909,0.85719839,2889.5,2888.3,21.26693252]
[1645184586111,0.25,2888.6,2888.4,0.1729]
[1645184586352,0.25,2888.6,2888.3,38.79216332]
[1645184586555,0.25,2888.6,2888.4,1.4746676]
[1645184586751,0.25,2888.6,2888.3,38.79216332]
[1645184586952,0.25,2888.6,2888.4,1.73123]
[1645184587153,0.25,2888.6,2888.5,20.19]
[1645184587553,0.25,2888.6,2888.5,21.05561]
[1645184587955,0.25,2888.6,2888.5,0.86561]
[1645184588155,0.25,2888.6,2888.5,4.36561]
[1645184588357,0.25,2888.6,2888.5,24.55561]
[1645184588560,0.25,2888.6,2888.5,4.36561]
[1645184588759,0.25,2888.6,2888.5,5.84021398]
[1645184589159,0.25,2888.6,2888.5,26.03021398]
[1645184589364,0.86558,2889.5,2888.9,0.8655]
[1645184589559,1.16558,2889.5,2888.9,0.8655]
[1645184590018,0.3,2889.4,2888.8,2.92376119]
[1645184590217,0.3,2889.4,2888.8,1.19277119]
[1645184590419,1.16567,2889.4,2888.8,1.19277119]
[1645184590620,0.3,2889.2,2888.8,1.19277119]
[1645184590821,0.86567,2889.4,2889.0,0.00240769]
[1645184591021,0.86797703,2889.7,2889.0,0.00240769]
[1645184591022,0.00240703,2889.7,2889.0,0.71540769]
[1645184591619,0.00240703,2889.7,2889.2,0.86544]
[1645184591824,1.46544,2889.8,2889.2,0.86544]
[1645184592021,0.00240714,2889.7,2889.2,0.86784759]
[1645184592422,0.00240714,2889.7,2889.2,4.36784759]
[1645184592726,0.00240714,2889.7,2889.2,0.86784759]
[1645184592922,1.46544,2889.8,2889.2,0.86544]
[1645184593324,0.00240718,2889.7,2889.3,0.84116292]
[1645184593524,0.00240718,2889.7,2889.0,0.713]
[1645184593754,1.73351718,2889.7,2889.0,0.713]
[1645184593959,1.73351718,2889.7,2889.0,5.07853]
[1645184594164,1.73111,2889.7,2889.0,5.07853]
[1645184594661,1.73111,2889.7,2889.0,5.96106903]
[1645184595060,1.73111,2889.7,2889.1,20.19]
[1645184595465,1.16544,2889.8,2889.2,21.05547]
[1645184595667,0.0012201,2889.7,2889.2,21.05547]
[1645184595866,0.86553,2889.6,2889.1,1.73084]
[1645184596263,0.86553,2889.6,2889.0,24.11093903]
[1645184596665,0.86553,2889.6,2889.0,21.07253903]
[1645184596864,0.86553,2889.6,2889.2,0.00240761]
[1645184597063,0.86553,2889.6,2889.4,0.06141477]
[1645184597511,0.86553,2889.6,2889.3,0.0196937]